fUSD/lending_fUSD_20240628
["ID","MTS","AMOUNT","RATE_DAILY","PERIOD"]
[330519970,1719558655222,-500.0,0.00019178,2]
[330519971,1719558655231,-500.0,0.00019178,2]
[330519972,1719558655240,-973.5,0.00019178,2]
[330519973,1719558655250,-1662.73,0.00019178,2]
[330519974,1719558655259,-259.81925109,0.00019178,2]
[330519975,1719558655269,-500.0,0.00019178,2]
[330519976,1719558655278,-500.0,0.00019178,2]
[330519977,1719558655287,-500.0,0.00019178,2]
[330519978,1719558655297,-500.0,0.00019178,2]
[330519979,1719558655306,-500.0,0.00019178,2]
[330519980,1719558655316,-933.12,0.00019178,2]
[330519981,1719558655325,-500.0,0.00019178,2]
[330519982,1719558655335,-500.0,0.00019178,2]
[330519983,1719558655344,-500.0,0.00019178,2]
[330519984,1719558655353,-544.83,0.00019178,2]
[330519985,1719558655363,-1021.32,0.00019178,2]
[330519986,1719558655372,-803.25,0.00019178,2]
[330519987,1719558655381,-500.0,0.00019178,2]
[330519988,1719558655390,-500.0,0.00019178,2]
[330519989,1719558655400,-500.0,0.00019178,2]
[330519990,1719558655409,-500.0,0.00019178,2]
[330519991,1719558655419,-500.0,0.00019178,2]
[330519992,1719558655428,-500.0,0.00019178,2]
[330519993,1719558655437,-1198.98,0.00019178,2]
[330519994,1719558655446,-500.0,0.00019178,2]
[330519995,1719558655456,-671.66,0.00019178,2]
[330519996,1719558655466,-1546.54,0.00019178,2]
[330519997,1719558655475,-422.66278787,0.00019178,2]
[330519998,1719558655485,-500.0,0.00019178,2]
[330519999,1719558655495,-500.0,0.00019178,2]
[330520000,1719558655505,-500.0,0.00019178,2]
[330520001,1719558655515,-500.0,0.00019178,2]
[330520002,1719558655525,-500.0,0.00019178,2]
[330520003,1719558655535,-470.92648419,0.00019178,2]
[330520004,1719558655544,-853.88,0.00019178,2]
[330520005,1719558655554,-1991.97,0.00019178,2]
[330520006,1719558655564,-500.0,0.00019178,2]
[330520007,1719558655573,-500.0,0.00019178,2]
[330520008,1719558655582,-500.0,0.00019178,2]
[330520009,1719558655592,-500.0,0.00019178,2]
[330520010,1719558655602,-500.0,0.00019178,2]
[330520011,1719558655611,-500.73468607,0.00019178,2]
[330520012,1719558655621,-500.0,0.00019178,2]
[330520013,1719558655631,-500.0,0.00019178,2]
[330520014,1719558655640,-323.4277709,0.00019178,2]
[330520015,1719558655649,-500.0,0.00019178,2]
[330520016,1719558655659,-878.16,0.00019178,2]
[330520017,1719558655669,-500.0,0.00019178,2]
[330520018,1719558655678,-500.0,0.00019178,2]
[330520019,1719558655687,-1108.4,0.00019178,2]
[330520020,1719558655696,-1797.61,0.00019178,2]
[330520021,1719558655706,-830.15,0.00019178,2]
[330520022,1719558655715,-500.0,0.00019178,2]
[330520023,1719558655724,-1458.9,0.00019178,2]
[330520024,1719558655734,-500.0,0.00019178,2]
[330520025,1719558655744,-692.09,0.00019178,2]
[330520026,1719558655753,-500.0,0.00019178,2]
[330520027,1719558655763,-500.0,0.00019178,2]
[330520028,1719558655773,-804.11,0.00019178,2]
[330520029,1719558655783,-857.9,0.00019178,2]
[330520030,1719558655793,-500.0,0.00019178,2]
[330520031,1719558655803,-565.29,0.00019178,2]
[330520032,1719558655812,-500.0,0.00019178,2]
[330520033,1719558655821,-500.0,0.00019178,2]
[330520034,1719558655830,-971.38,0.00019178,2]
[330520035,1719558655840,-864.9,0.00019178,2]
[330520036,1719558655850,-500.0,0.00019178,2]
[330520037,1719558655860,-500.0,0.00019178,2]
[330520038,1719558655869,-577.35,0.00019178,2]
[330520039,1719558655878,-500.0,0.00019178,2]
[330520040,1719558655889,-151.0,0.00019178,2]
[330520041,1719558655899,-1590.21,0.00019178,2]
[330520042,1719558655909,-151.0,0.00019178,2]
[330520043,1719558655920,-151.0,0.00019178,2]
[330520044,1719558655930,-154.53207,0.00019178,2]
[330520045,1719558655941,-500.0,0.00019178,2]
[330520046,1719558655950,-500.0,0.00019178,2]
[330520047,1719558655959,-2934.36,0.00019178,2]
[330520048,1719558655969,-1486.58,0.00019178,2]
[330520049,1719558655978,-894.6,0.00019178,2]
[330520050,1719558655987,-3334.49,0.00019178,2]
[330520051,1719558655996,-151.0,0.00019178,2]
[330520052,1719558656005,-151.0,0.00019178,2]
[330520053,1719558656015,-151.0,0.00019178,2]
[330520054,1719558656024,-1364.86,0.00019178,2]
[330520055,1719558656035,-776.63,0.00019178,2]
[330520056,1719558656045,-500.0,0.00019178,2]
[330520057,1719558656055,-500.0,0.00019178,2]
[330520058,1719558656064,-500.0,0.00019178,2]
[330520059,1719558656075,-818.59,0.00019178,2]
[330520060,1719558656089,-500.0,0.00019178,2]
[330520061,1719558656098,-500.0,0.00019178,2]
[330520062,1719558656107,-500.0,0.00019178,2]
[330520063,1719558656118,-500.0,0.00019178,2]
[330520064,1719558656129,-916.78,0.00019178,2]
[330520065,1719558656139,-500.0,0.00019178,2]
[330520066,1719558656149,-500.0,0.00019178,2]
[330520067,1719558656159,-500.0,0.00019178,2]
[330520068,1719558656169,-500.0,0.00019178,2]
[330520069,1719558656178,-500.0,0.00019178,2]
[330520070,1719558656188,-500.0,0.00019178,2]
[330520071,1719558656197,-500.0,0.00019178,2]
[330520072,1719558656207,-500.0,0.00019178,2]
[330520073,1719558656216,-500.0,0.00019178,2]
[330520074,1719558656226,-500.0,0.00019178,2]
[330520075,1719558656235,-1606.4,0.00019178,2]
[330520076,1719558656245,-500.0,0.00019178,2]
[330520077,1719558656255,-500.0,0.00019178,2]
[330520078,1719558656264,-500.0,0.00019178,2]
[330520079,1719558656274,-1523.71,0.00019178,2]
[330520080,1719558656283,-500.0,0.00019178,2]
[330520081,1719558656293,-500.0,0.00019178,2]
[330520082,1719558656302,-2289.07,0.00019178,2]
[330520083,1719558656312,-500.0,0.00019178,2]
[330520084,1719558656321,-500.0,0.00019178,2]
[330520085,1719558656331,-2134.84,0.00019178,2]
[330520086,1719558656340,-500.0,0.00019178,2]
[330520087,1719558656350,-540.94,0.00019178,2]
[330520088,1719558656360,-192.01866806,0.00019178,2]
[330520089,1719558656369,-500.0,0.00019178,2]
[330520090,1719558656379,-500.0,0.00019178,2]
[330520091,1719558656389,-500.0,0.00019178,2]
[330520092,1719558656398,-1182.97,0.00019178,2]
[330520093,1719558656408,-687.74,0.00019178,2]
[330520094,1719558656418,-2844.29,0.00019178,2]
[330520095,1719558656428,-1516.21,0.00019178,2]
[330520096,1719558656438,-500.0,0.00019178,2]
[330520097,1719558656448,-500.0,0.00019178,2]
[330520098,1719558656458,-8203.94,0.00019178,2]
[330520099,1719558656467,-500.0,0.00019178,2]
[330520100,1719558656477,-877.81,0.00019178,2]
[330520101,1719558656487,-687.83,0.00019178,2]
[330520102,1719558656497,-500.0,0.00019178,2]
[330520103,1719558656507,-500.0,0.00019178,2]
[330520104,1719558656516,-622.75,0.00019178,2]
[330520105,1719558656525,-431.97848957,0.00019178,2]
[330520106,1719558656535,-2943.91,0.00019178,2]
[330520107,1719558656544,-500.0,0.00019178,2]
[330520108,1719558656553,-153.538116,0.00019178,2]
[330520109,1719558656562,-500.0,0.00019178,2]
[330520110,1719558656571,-1079.86,0.00019178,2]
[330520111,1719558656581,-500.0,0.00019178,2]
[330520112,1719558656590,-500.0,0.00019178,2]
[330520113,1719558656601,-500.0,0.00019178,2]
[330520114,1719558656611,-500.0,0.00019178,2]
[330520115,1719558656620,-670.57,0.00019178,2]
[330520116,1719558656630,-500.0,0.00019178,2]
[330520117,1719558656640,-500.0,0.00019178,2]
[330520118,1719558656650,-1243.35,0.00019178,2]
[330520119,1719558656660,-500.0,0.00019178,2]
[330520120,1719558656670,-678.82,0.00019178,2]
[330520121,1719558656680,-972.29,0.00019178,2]
[330520122,1719558656689,-500.0,0.00019178,2]
[330520123,1719558656699,-500.0,0.00019178,2]
[330520124,1719558656709,-10921.42,0.00019178,2]
[330520125,1719558656719,-500.0,0.00019178,2]
[330520126,1719558656729,-983.07,0.00019178,2]
[330520127,1719558656741,-1703.42,0.00019178,2]
[330520128,1719558656751,-1718.14,0.00019178,2]
[330520129,1719558656761,-500.0,0.00019178,2]
[330520130,1719558656770,-500.0,0.00019178,2]
[330520131,1719558656780,-3108.58,0.00019178,2]
[330520132,1719558656790,-500.0,0.00019178,2]
[330520133,1719558656800,-500.0,0.00019178,2]
[330520134,1719558656811,-500.0,0.00019178,2]
[330520135,1719558656821,-788.1,0.00019178,2]
[330520136,1719558656831,-1852.59,0.00019178,2]
[330520137,1719558656842,-500.0,0.00019178,2]
[330520138,1719558656852,-3216.82,0.00019178,2]
[330520139,1719558656862,-1484.3,0.00019178,2]
[330520140,1719558656874,-500.0,0.00019178,2]
[330520141,1719558656885,-500.0,0.00019178,2]
[330520142,1719558656894,-500.0,0.00019178,2]
[330520143,1719558656904,-231.88130797,0.00019178,2]
[330520144,1719558656915,-500.0,0.00019178,2]
[330520145,1719558656924,-500.0,0.00019178,2]
[330520146,1719558656933,-500.0,0.00019178,2]
[330520147,1719558656943,-500.0,0.00019178,2]
[330520148,1719558656952,-602.72,0.00019178,2]
[330520149,1719558656962,-638.54,0.00019178,2]
[330520150,1719558656973,-557.47,0.00019178,2]
[330520151,1719558656983,-500.0,0.00019178,2]
[330520152,1719558656993,-766.29,0.00019178,2]
[330520153,1719558657005,-1832.43,0.00019178,2]
[330520154,1719558657016,-5215.3,0.00019178,2]
[330520155,1719558657026,-500.0,0.00019178,2]
[330520156,1719558657037,-3427.76,0.00019178,2]
[330520157,1719558657047,-790.32,0.00019178,2]
[330520158,1719558657058,-800.58,0.00019178,2]
[330520159,1719558657069,-1166.53,0.00019178,2]
[330520160,1719558657082,-500.0,0.00019178,2]
[330520161,1719558657092,-500.0,0.00019178,2]
[330520162,1719558657105,-500.0,0.00019178,2]
[330520163,1719558657117,-539.42,0.00019178,2]
[330520164,1719558657128,-3384.08,0.00019178,2]
[330520165,1719558657138,-1302.32,0.00019178,2]
[330520166,1719558657147,-500.0,0.00019178,2]
[330520167,1719558657160,-989.66,0.00019178,2]
[330520168,1719558657171,-1365.76,0.00019178,2]
[330520169,1719558657181,-2076.44,0.00019178,2]
[330520170,1719558657191,-500.0,0.00019178,2]
[330520171,1719558657202,-815.26,0.00019178,2]
[330520172,1719558657212,-500.0,0.00019178,2]
[330520173,1719558657222,-520.33,0.00019178,2]
[330520174,1719558657232,-1406.52,0.00019178,2]
[330520175,1719558657242,-1219.21,0.00019178,2]
[330520176,1719558657253,-3267.35,0.00019178,2]
[330520177,1719558657263,-500.0,0.00019178,2]
[330520178,1719558657274,-1558.11,0.00019178,2]
[330520179,1719558657285,-500.0,0.00019178,2]
[330520180,1719558657294,-2141.73,0.00019178,2]
[330520181,1719558657304,-500.0,0.00019178,2]
[330520182,1719558657315,-500.0,0.00019178,2]
[330520183,1719558657325,-500.0,0.00019178,2]
[330520184,1719558657336,-500.0,0.00019178,2]
[330520185,1719558657346,-1902.0,0.00019178,2]
[330520186,1719558657359,-500.0,0.00019178,2]
[330520187,1719558657370,-1907.18,0.00019178,2]
[330520188,1719558657380,-500.0,0.00019178,2]
[330520189,1719558657390,-1934.24,0.00019178,2]
[330520190,1719558657400,-1347.33,0.00019178,2]
[330520191,1719558657410,-1238.63,0.00019178,2]
[330520192,1719558657420,-1650.8,0.00019178,2]
[330520193,1719558657430,-911.26,0.00019178,2]
[330520194,1719558657440,-500.0,0.00019178,2]
[330520195,1719558657450,-500.0,0.00019178,2]
[330520196,1719558657460,-500.0,0.00019178,2]
[330520197,1719558657470,-804.56,0.00019178,2]
[330520198,1719558657479,-500.0,0.00019178,2]
[330520199,1719558657489,-593.54,0.00019178,2]
[330520200,1719558657498,-500.0,0.00019178,2]
[330520201,1719558657508,-1609.09,0.00019178,2]
[330520202,1719558657518,-2348.43,0.00019178,2]
[330520203,1719558657528,-500.0,0.00019178,2]
[330520204,1719558657538,-500.0,0.00019178,2]
[330520205,1719558657548,-1742.51,0.00019178,2]
[330520206,1719558657559,-280.347083,0.00019178,2]
[330520207,1719558657568,-280.347083,0.00019178,2]
[330520208,1719558657578,-280.347083,0.00019178,2]
[330520209,1719558657588,-280.347083,0.00019178,2]
[330520210,1719558657598,-500.0,0.00019178,2]
[330520211,1719558657610,-1920.03,0.00019178,2]
[330520212,1719558657620,-710.83,0.00019178,2]
[330520213,1719558657629,-280.347083,0.00019178,2]
[330520214,1719558657639,-280.347083,0.00019178,2]
[330520215,1719558657648,-1879.31,0.00019178,2]
[330520216,1719558657658,-280.347083,0.00019178,2]
[330520217,1719558657668,-500.0,0.00019178,2]
[330520218,1719558657678,-280.347083,0.00019178,2]
[330520219,1719558657687,-765.65,0.00019178,2]
[330520220,1719558657697,-500.0,0.00019178,2]
[330520221,1719558657706,-280.347083,0.00019178,2]
[330520222,1719558657716,-2975.68,0.00019178,2]
[330520223,1719558657726,-280.347083,0.00019178,2]
[330520224,1719558657736,-280.347083,0.00019178,2]
[330520225,1719558657746,-280.347083,0.00019178,2]
[330520226,1719558657756,-903.08,0.00019178,2]
[330520227,1719558657765,-650.87,0.00019178,2]
[330520228,1719558657776,-500.0,0.00019178,2]
[330520229,1719558657785,-500.0,0.00019178,2]
[330520230,1719558657795,-1810.96,0.00019178,2]
[330520231,1719558657804,-500.0,0.00019178,2]
[330520232,1719558657813,-500.0,0.00019178,2]
[330520233,1719558657823,-500.0,0.00019178,2]
[330520234,1719558657832,-538.33277401,0.00019178,2]
[330520235,1719558657842,-500.0,0.00019178,2]
[330520236,1719558657853,-500.0,0.00019178,2]
[330520237,1719558657863,-500.0,0.00019178,2]
[330520238,1719558657872,-1015.21,0.00019178,2]
[330520239,1719558657881,-500.0,0.00019178,2]
[330520240,1719558657891,-1769.92,0.00019178,2]
[330520241,1719558657900,-999.93,0.00019178,2]
[330520242,1719558657910,-674.68,0.00019178,2]
[330520243,1719558657920,-3293.63,0.00019178,2]
[330520244,1719558657929,-500.0,0.00019178,2]
[330520245,1719558657939,-3979.08,0.00019178,2]
[330520246,1719558657949,-534.26445556,0.00019178,2]
[330520247,1719558657959,-1612.44,0.00019178,2]
[330520248,1719558657969,-942.11,0.00019178,2]
[330520249,1719558657978,-4986.05,0.00019178,2]
[330520250,1719558657988,-1063.76,0.00019178,2]
[330520251,1719558657998,-1063.76,0.00019178,2]
[330520252,1719558658008,-1330.05,0.00019178,2]
[330520253,1719558658018,-1063.76,0.00019178,2]
[330520254,1719558658028,-573.83,0.00019178,2]
[330520255,1719558658039,-1063.76,0.00019178,2]
[330520256,1719558658050,-1063.76,0.00019178,2]
[330520257,1719558658059,-1063.76,0.00019178,2]
[330520258,1719558658070,-1680.98,0.00019178,2]
[330520259,1719558658086,-1063.76,0.00019178,2]
[330520260,1719558658096,-500.0,0.00019178,2]
[330520261,1719558658108,-500.0,0.00019178,2]
[330520262,1719558658119,-1063.76,0.00019178,2]
[330520263,1719558658132,-1063.76,0.00019178,2]
[330520264,1719558658142,-1063.76,0.00019178,2]
[330520265,1719558658154,-2541.57,0.00019178,2]
[330520266,1719558658165,-1063.76,0.00019178,2]
[330520267,1719558658176,-1063.76,0.00019178,2]
[330520268,1719558658187,-1063.76,0.00019178,2]
[330520269,1719558658197,-1249.46,0.00019178,2]
[330520270,1719558658207,-1063.76,0.00019178,2]
[330520271,1719558658217,-500.0,0.00019178,2]
[330520272,1719558658228,-1063.76,0.00019178,2]
[330520273,1719558658240,-734.3,0.00019178,2]
[330520274,1719558658251,-500.0,0.00019178,2]
[330520275,1719558658261,-1063.76,0.00019178,2]
[330520276,1719558658272,-500.0,0.00019178,2]
[330520277,1719558658282,-1063.76,0.00019178,2]
[330520278,1719558658292,-1063.76,0.00019178,2]
[330520279,1719558658302,-1210.78,0.00019178,2]
[330520280,1719558658313,-1063.76,0.00019178,2]
[330520281,1719558658324,-1063.76,0.00019178,2]
[330520282,1719558658334,-1063.76,0.00019178,2]
[330520283,1719558658344,-625.67,0.00019178,2]
[330520284,1719558658355,-1063.76,0.00019178,2]
[330520285,1719558658366,-500.0,0.00019178,2]
[330520286,1719558658376,-1063.76,0.00019178,2]
[330520287,1719558658387,-4578.15,0.00019178,2]
[330520288,1719558658397,-1063.88529784,0.00019178,2]
[330520289,1719558658407,-500.0,0.00019178,2]
[330520290,1719558658418,-2383.44,0.00019178,2]
[330520291,1719558658428,-199.91874959,0.00019178,2]
[330520292,1719558658439,-3981.14,0.00019178,2]
[330520293,1719558658449,-500.0,0.00019178,2]
[330520294,1719558658460,-844.96,0.00019178,2]
[330520295,1719558658472,-2196.52,0.00019178,2]
[330520296,1719558658483,-500.0,0.00019178,2]
[330520297,1719558658492,-500.0,0.00019178,2]
[330520298,1719558658502,-551.78,0.00019178,2]
[330520299,1719558658513,-656.83,0.00019178,2]
[330520300,1719558658523,-1673.87,0.00019178,2]
[330520301,1719558658534,-331.97385843,0.00019178,2]
[330520302,1719558658544,-1241.02,0.00019178,2]
[330520303,1719558658554,-500.0,0.00019178,2]
[330520304,1719558658564,-1907.75,0.00019178,2]
[330520305,1719558658575,-500.0,0.00019178,2]
[330520306,1719558658585,-1008.45,0.00019178,2]
[330520307,1719558658595,-199.92166643,0.00019178,2]
[330520308,1719558658606,-1072.67,0.00019178,2]
[330520309,1719558658615,-500.1172422,0.00019178,2]
[330520310,1719558658625,-1578.09,0.00019178,2]
[330520311,1719558658636,-1693.02,0.00019178,2]
[330520312,1719558658646,-500.0,0.00019178,2]
[330520313,1719558658657,-671.7,0.00019178,2]
[330520314,1719558658669,-500.0,0.00019178,2]
[330520315,1719558658680,-500.0,0.00019178,2]
[330520316,1719558658691,-1010.02,0.00019178,2]
[330520317,1719558658979,-500.0,0.00019178,2]
[330520318,1719558658990,-500.0,0.00019178,2]
[330520319,1719558659001,-1100.6,0.00019178,2]
[330520320,1719558659012,-500.0,0.00019178,2]
[330520321,1719558659022,-15955.78,0.00019178,2]
[330520322,1719558659031,-711.02,0.00019178,2]
[330520323,1719558659042,-500.0,0.00019178,2]
[330520324,1719558659052,-500.0,0.00019178,2]
[330520325,1719558659063,-2386.74,0.00019178,2]
[330520326,1719558659076,-582.95,0.00019178,2]
[330520327,1719558659086,-531.63,0.00019178,2]
[330520328,1719558659096,-500.0,0.00019178,2]
[330520329,1719558659106,-500.0,0.00019178,2]
[330520330,1719558659116,-500.0,0.00019178,2]
[330520331,1719558659128,-2068.97,0.00019178,2]
[330520332,1719558659140,-500.0,0.00019178,2]
[330520333,1719558659152,-500.0,0.00019178,2]
[330520334,1719558659162,-851.02,0.00019178,2]
[330520335,1719558659172,-500.0,0.00019178,2]
[330520336,1719558659182,-500.0,0.00019178,2]
[330520337,1719558659191,-500.0,0.00019178,2]
[330520338,1719558659201,-500.0,0.00019178,2]
[330520339,1719558659211,-500.0,0.00019178,2]
[330520340,1719558659221,-2076.19,0.00019178,2]
[330520341,1719558659231,-2225.32,0.00019178,2]
[330520342,1719558659241,-1143.68,0.00019178,2]
[330520343,1719558659252,-500.0,0.00019178,2]
[330520344,1719558659262,-3840.25,0.00019178,2]
[330520345,1719558659272,-712.82,0.00019178,2]
[330520346,1719558659282,-6077.81,0.00019178,2]
[330520347,1719558659292,-500.0,0.00019178,2]
[330520348,1719558659302,-1392.44,0.00019178,2]
[330520349,1719558659312,-753.76,0.00019178,2]
[330520350,1719558659321,-500.0,0.00019178,2]
[330520351,1719558659331,-1105.67,0.00019178,2]
[330520352,1719558659341,-500.0,0.00019178,2]
[330520353,1719558659351,-500.0,0.00019178,2]
[330520354,1719558659361,-560.48,0.00019178,2]
[330520355,1719558659371,-1578.03,0.00019178,2]
[330520356,1719558659380,-632.32,0.00019178,2]
[330520357,1719558659391,-1002.32,0.00019178,2]
[330520358,1719558659401,-500.0,0.00019178,2]
[330520359,1719558659411,-1981.01,0.00019178,2]
[330520360,1719558659420,-500.0,0.00019178,2]
[330520361,1719558659430,-718.91,0.00019178,2]
[330520362,1719558659440,-359.35052185,0.00019178,2]
[330520363,1719558659450,-500.0,0.00019178,2]
[330520364,1719558659459,-2329.42,0.00019178,2]
[330520365,1719558659468,-1316.28,0.00019178,2]
[330520366,1719558659481,-1144.62,0.00019178,2]
[330520367,1719558659492,-500.0,0.00019178,2]
[330520368,1719558659502,-500.0,0.00019178,2]
[330520369,1719558659511,-1712.61,0.00019178,2]
[330520370,1719558659522,-1563.65,0.00019178,2]
[330520371,1719558659531,-500.0,0.00019178,2]
[330520372,1719558659541,-2454.2,0.00019178,2]
[330520373,1719558659550,-500.0,0.00019178,2]
[330520374,1719558659559,-500.0,0.00019178,2]
[330520375,1719558659569,-500.0,0.00019178,2]
[330520376,1719558659579,-500.0,0.00019178,2]
[330520377,1719558659590,-3101.9,0.00019178,2]
[330520378,1719558659600,-1141.19,0.00019178,2]
[330520379,1719558659610,-151.0,0.00019178,2]
[330520380,1719558659619,-151.0,0.00019178,2]
[330520381,1719558659629,-153.460801,0.00019178,2]
[330520382,1719558659638,-500.0,0.00019178,2]
[330520383,1719558659648,-500.0,0.00019178,2]
[330520384,1719558659657,-610.25,0.00019178,2]
[330520385,1719558659667,-500.0,0.00019178,2]
[330520386,1719558659676,-500.0,0.00019178,2]
[330520387,1719558659686,-500.0,0.00019178,2]
[330520388,1719558659696,-2674.4,0.00019178,2]
[330520389,1719558659705,-754.7,0.00019178,2]
[330520390,1719558659715,-500.0,0.00019178,2]
[330520391,1719558659724,-500.0,0.00019178,2]
[330520392,1719558659733,-151.0,0.00019178,2]
[330520393,1719558659743,-156.060678,0.00019178,2]
[330520394,1719558659752,-500.0,0.00019178,2]
[330520395,1719558659761,-1574.21,0.00019178,2]
[330520396,1719558659771,-634.6,0.00019178,2]
[330520397,1719558659780,-6990.29,0.00019178,2]
[330520398,1719558659790,-14366.4,0.00019178,2]
[330520399,1719558659799,-500.0,0.00019178,2]
[330520400,1719558659808,-500.0,0.00019178,2]
[330520401,1719558659818,-2060.65,0.00019178,2]
[330520402,1719558659827,-963.45,0.00019178,2]
[330520403,1719558659837,-1842.26,0.00019178,2]
[330520404,1719558659847,-500.0,0.00019178,2]
[330520405,1719558659857,-2857.87,0.00019178,2]
[330520406,1719558659867,-500.0,0.00019178,2]
[330520407,1719558659877,-1171.76,0.00019178,2]
[330520408,1719558659886,-558.83,0.00019178,2]
[330520409,1719558659896,-1203.56,0.00019178,2]
[330520410,1719558659908,-500.0,0.00019178,2]
[330520411,1719558659919,-500.0,0.00019178,2]
[330520412,1719558659929,-303.67273943,0.00019178,2]
[330520413,1719558659939,-1680.8,0.00019178,2]
[330520414,1719558659950,-3675.92,0.00019178,2]
[330520415,1719558659960,-500.0,0.00019178,2]
[330520416,1719558659969,-2271.99,0.00019178,2]
[330520417,1719558659979,-2811.74,0.00019178,2]
[330520418,1719558659989,-641.86,0.00019178,2]
[330520419,1719558659999,-1244.61,0.00019178,2]
[330520420,1719558660008,-865.19,0.00019178,2]
[330520421,1719558660018,-631.75,0.00019178,2]
[330520422,1719558660028,-955.4,0.00019178,2]
[330520423,1719558660038,-500.0,0.00019178,2]
[330520424,1719558660048,-500.0,0.00019178,2]
[330520425,1719558660057,-891.75,0.00019178,2]
[330520426,1719558660067,-500.0,0.00019178,2]
[330520427,1719558660080,-1486.73,0.00019178,2]
[330520428,1719558660090,-1073.63,0.00019178,2]
[330520429,1719558660099,-516.07,0.00019178,2]
[330520430,1719558660111,-3152.16,0.00019178,2]
[330520431,1719558660122,-500.0,0.00019178,2]
[330520432,1719558660134,-500.0,0.00019178,2]
[330520433,1719558660144,-500.0,0.00019178,2]
[330520434,1719558660155,-2841.69,0.00019178,2]
[330520435,1719558660164,-1346.16,0.00019178,2]
[330520436,1719558660174,-94318.51,0.00019178,2]
[330520437,1719558660184,-768.74,0.00019178,2]
[330520438,1719558660193,-3121.13,0.00019178,2]
[330520439,1719558660203,-587.64,0.00019178,2]
[330520440,1719558660213,-500.0,0.00019178,2]
[330520441,1719558660223,-1232.34,0.00019178,2]
[330520442,1719558660233,-500.0,0.00019178,2]
[330520443,1719558660245,-500.0,0.00019178,2]
[330520444,1719558660255,-546.98,0.00019178,2]
[330520445,1719558660264,-1794.64,0.00019178,2]
[330520446,1719558660274,-1919.41,0.00019178,2]
[330520447,1719558660283,-500.0,0.00019178,2]
[330520448,1719558660293,-500.0,0.00019178,2]
[330520449,1719558660303,-3062.76,0.00019178,2]
[330520450,1719558660312,-1494.4,0.00019178,2]
[330520451,1719558660323,-500.0,0.00019178,2]
[330520452,1719558660332,-500.0,0.00019178,2]
[330520453,1719558660342,-500.0,0.00019178,2]
[330520454,1719558660351,-2328.24,0.00019178,2]
[330520455,1719558660363,-1132.48,0.00019178,2]
[330520456,1719558660374,-1692.21,0.00019178,2]
[330520457,1719558660383,-500.0,0.00019178,2]
[330520458,1719558660393,-5000.0,0.00019178,2]
[330520459,1719558660402,-500.0,0.00019178,2]
[330520460,1719558660412,-500.0,0.00019178,2]
[330520461,1719558660422,-1549.64,0.00019178,2]
[330520462,1719558660432,-749.53,0.00019178,2]
[330520463,1719558660442,-500.0,0.00019178,2]
[330520464,1719558660451,-500.0,0.00019178,2]
[330520465,1719558660460,-2990.61,0.00019178,2]
[330520466,1719558660482,-500.0,0.00019178,2]
[330520467,1719558660493,-500.0,0.00019178,2]
[330520468,1719558660503,-5676.22,0.00019178,2]
[330520469,1719558660514,-500.0,0.00019178,2]